Cogmind - Beta 13 @@@ ROGUE MODE // 2024.04.10 @ 20:31:43 Player: Copyrite Result: Destroyed by G-47 Trooper with Particle Gun Performance ------------- Evolutions (1) 500 Regions Visited (2) 400 Robots Destroyed (20) 100 Value Destroyed (386) 386 Prototype IDs (1) 20 Alien Tech Used (0) 0 Bonus (0) 0 TOTAL SCORE: 1406 Bonus ------- None Cogmind --------- Core Integrity 0/400 Matter 248/300 Energy 100/100 System Corruption 0% Temperature Cool (15) Movement Core (50) Location -9/Materials Parts ------- > --- POWER (1) -------- (None) > --- PROPULSION (3) --- (None) > --- UTILITY (3) ------ Signal Interpreter Hacking Suite > --- WEAPON (2) ------- (None) > --- INVENTORY (5) ---- Ion Engine Armored Treads Armored Treads Improved Datajack Peak State ------------ > --- POWER ------------ Ion Engine > --- PROPULSION ------- Flight Unit Flight Unit Flight Unit > --- UTILITY ---------- Sensor Array Signal Interpreter Hacking Suite > --- WEAPON ----------- Assault Rifle Grenade Launcher > --- INVENTORY -------- Armored Treads Armored Treads Small Storage Unit Structural Scanner Improved Datajack [Rating: 12] Favorites ----------- Power Ion Engine Engine Ion Engine Propulsion Light Treads Treads Light Treads Flight Unit Flight Unit Utility Signal Interpreter Device Structural Scanner Storage Small Storage Unit Processor Signal Interpreter Hackware Hacking Suite Weapon Assault Rifle Ballistic Gun Assault Rifle Launcher Grenade Launcher Special Melee Weapon Datajack Build | -11 -10 -9 ------- Run | Yrd Mat Mat Slots Evolved 2 | . . 2 Power . | . . . Propulsion 1 | . . 1 Utility 1 | . . 1 Weapon . | . . . Parts Attached 24 | 5 12 7 Power 3 | 1 1 1 Engine 3 | 1 1 1 Core . | . . . Reactor . | . . . Propulsion 7 | 2 2 3 Treads 2 | 2 . . Leg . | . . . Wheel . | . . . Hover . | . . . Flight 5 | . 2 3 Utility 7 | 1 3 3 Device 4 | . 2 2 Storage 1 | 1 . . Processor 1 | . 1 . Hackware 1 | . . 1 Protection . | . . . Artifact . | . . . Weapon 7 | 1 6 . Energy Gun . | . . . Energy Cannon . | . . . Ballistic Gun 1 | 1 . . Ballistic Cannon . | . . . Launcher 3 | . 3 . Special Weapon . | . . . Impact Weapon . | . . . Slashing Weapon . | . . . Piercing Weapon . | . . . Special Melee Weapon 3 | . 3 . Unidentified Prototypes 1 | . . 1 Parts Lost 10 | . 1 9 Power 1 | . . 1 Propulsion 5 | . . 5 Utility 2 | . . 2 Weapon 2 | . 1 1 Highest Loss Streak 8 | . 1 8 To Critical Strikes . | . . . Average Slot Usage (%) 92 | . 95 83 Engine 13 | . 14 11 Treads 16 | . 22 . Flight 10 | . 4 26 Device 12 | . 12 11 Storage 5 | . 7 . Processor 8 | . 7 11 Hackware 2 | . . 9 Ballistic Gun 12 | . 14 8 Launcher 6 | . 7 4 Special Melee Weapon 3 | . 4 . Naked Turns . | . . . Heaviest Build 16 | 12 16 12 Greatest Support 40 | 40 40 12 Greatest Overweight (x) 2 | 1 2 1 Average Overweight (x) . | . . . Largest Inventory Capacity 8 | 8 8 5 Average Capacity 6 | 6 6 5 Most Carried 5 | 3 5 5 Average Carried 4 | 2 4 4 Final Capacity 8 | 8 5 5 Final Carried 4 | 3 4 4 Class Distribution -------------------- 81% | Mutant 15% | Scavenger-Mutant 3% | Scavenger-Scout Dominant Class ---------------- Mutant | -10/Materials Scavenger-Mutant | -9/Materials Resources | -11 -10 -9 ----------- Run | Yrd Mat Mat Matter Collected 529 | 226 129 174 Remotely . | . . . Salvage Created 358 | . 278 80 Parts 47 | . 30 17 Haulers Intercepted . | . . . Recyclers Shooed . | . . . Parts Field Recycled . | . . . Retrieved Matter . | . . . Parts Self-Destructed . | . . . Prevented . | . . . Kills | -11 -10 -9 ------- Run | Yrd Mat Mat Combat Hostiles Destroyed 10 | . 9 1 Guns 5 | . 4 1 AOE 5 | . 5 . Classes Destroyed 6 | . 6 . Builder 5 | . 3 2 Recycler 1 | . 1 . Operator 2 | . 1 1 Watcher 2 | . 1 1 Swarmer 3 | . 2 1 Grunt 7 | . 7 . Best Kill Streak 6 | . 6 4 Combat Bots Only 4 | . 4 1 Max Kills in Single Turn 2 | . 2 1 Gunslinging . | . . . Exploded 1 | . 1 . Melee . | . . . Uniques/NPCs Destroyed . | . . . Combat | -11 -10 -9 -------- Run | Yrd Mat Mat Hostile Shots Fired 154 | . 37 117 Missed 57 | . 10 47 Damage Taken 1183 | . 358 825 Core 479 | . 69 410 Absorbed by Shields . | . . . Core Remaining (%) 86 | 100 72 . Volleys Fired 39 | . 31 8 Largest 1 | . 1 1 Hottest 30 | . 30 20 Shots Fired 39 | . 31 8 Gun 28 | . 20 8 Cannon . | . . . Launcher 11 | . 11 . Special . | . . . Kinetic 28 | . 20 8 Thermal . | . . . Explosive 11 | . 11 . Electromagnetic . | . . . Robot Hit Streak 10 | . 10 2 Robot Miss Streak 3 | . 3 3 Penetration Max . | . . . Secondary Targets . | . . . Shots Hit Robots 25 | . 22 3 Core Hits 30 | . 24 6 Critical Kills . | . . . Critical Parts Destroyed . | . . . Critical Strikes . | . . . Melee Attacks 2 | . 2 . Impact . | . . . Slashing . | . . . Piercing . | . . . Sneak Attacks 2 | . 2 . Combat Hostiles . | . . . Follow-up Attacks . | . . . Damage Inflicted 1073 | . 999 74 Guns 258 | . 184 74 Cannons . | . . . Explosions 815 | . 815 . Melee . | . . . Ramming . | . . . Kinetic 258 | . 184 74 Thermal . | . . . Explosive 815 | . 815 . Electromagnetic . | . . . Impact . | . . . Slashing . | . . . Piercing . | . . . Highest Corruption . | . . . Average Corruption . | . . . Corruption Purged . | . . . Corruption Blocked . | . . . Overload Shots . | . . . Overflow Damage 10 | . 10 . Projectiles . | . . . Explosions 10 | . 10 . Melee . | . . . Knockbacks . | . . . Impact . | . . . Kinetic . | . . . Secondary . | . . . Self-Inflicted Damage 29 | . 29 . Shots 2 | . 2 . Rammed 1 | . . 1 Targets Rammed 1 | . . 1 Kicked . | . . . Crushed . | . . . Highest Temperature 17 | . 2 17 Average Temperature 4 | . 1 8 Received Heat Transfer 516 | . 165 351 Siege Activations . | . . . Robots Corrupted . | . . . Combat Hostiles . | . . . Parts Fried . | . . . Impact Corruptions . | . . . Robots Melted . | . . . Combat Hostiles . | . . . Parts Melted . | . . . Heat Transferred . | . . . Parts Sabotaged . | . . . Parts Stolen . | . . . Parts Stripped . | . . . Power Chain Reactions . | . . . Alert | -11 -10 -9 ------- Run | Yrd Mat Mat Peak Influence 510 | . 176 510 Initial 74 | . . 74 Average 97 | . 57 232 Maximum Alert Level 2 | . . 2 Low Security (%) 91 | 100 100 65 Level 1 5 | . . 20 Level 2 3 | . . 13 Level 3 . | . . . Level 4 . | . . . Level 5 . | . . . High Security . | . . . Max Security . | . . . Squads Dispatched 5 | . 3 2 Investigation 2 | . 2 . Extermination . | . . . Reinforcement 3 | . 1 2 Assault . | . . . Garrison . | . . . Intercept . | . . . Searches Triggered . | . . . Construction Impeded . | . . . Haulers Reinforced . | . . . Active Scanning Responses . | . . . Cargo Convoy Interrupts . | . . . Stealth | -11 -10 -9 --------- Run | Yrd Mat Mat Distress Signals 3 | . 1 2 Communications Jammed . | . . . Distress Signals . | . . . Times Spotted 48 | . 15 33 Peak Tracking Total 16 | . 4 16 Tactical Retreats 6 | . . 6 Traps | -11 -10 -9 ------- Run | Yrd Mat Mat Traps Triggered 2 | . 2 . Indirectly . | . . . Trap Hack Attempts . | . . . Triggered . | . . . Disarmed . | . . . Reprogrammed . | . . . Reused . | . . . Traps Extracted . | . . . Installed . | . . . Triggered . | . . . Machines | -11 -10 -9 ---------- Run | Yrd Mat Mat Machines Disabled 1 | . 1 . Max in Single Turn 1 | . 1 . Machines Repaired . | . . . Machines Dismantled . | . . . Machines Sabotaged . | . . . Overloaded Fab Kills . | . . . Hacking | -11 -10 -9 --------- Run | Yrd Mat Mat Machines Accessed 3 | . 1 2 Terminals 2 | . 1 1 Fabricators . | . . . Repair Stations . | . . . Recycling Units 1 | . . 1 Scanalyzers . | . . . Garrison Access . | . . . Total Hacks 6 | . 2 4 Successful 2 | . . 2 Failed 4 | . 2 2 Catastrophic 2 | . 1 1 Database Lockouts . | . . . Manual 4 | . 2 2 Terminals 4 | . 2 2 Fabricators . | . . . Repair Stations . | . . . Recycling Units 2 | . . 2 Scanalyzers . | . . . Garrison Access . | . . . Terminal Hacks . | . . . Fabricator Hacks . | . . . Repair Station Hacks . | . . . Recycling Unit Hacks 1 | . . 1 Report Inventory 1 | . . 1 Scanalyzer . | . . . Garrison Access Hacks . | . . . Unauthorized Hacks 1 | . . 1 Terminals 1 | . . 1 Botnet 1 | . . 1 Fabricators . | . . . Repair Stations . | . . . Recycling Units . | . . . Scanalyzers . | . . . Garrison Access . | . . . Data Cores Recovered . | . . . Used . | . . . Hacking Detections 3 | . 1 2 Full Trace Events . | . . . Feedback Events . | . . . Feedback Blocked . | . . . Robot Schematics Acquired . | . . . Robots Built . | . . . Authchips . | . . . Time . | . . . Total Robot Build Rating . | . . . Part Schematics Acquired . | . . . Parts Built . | . . . Authchips . | . . . Time . | . . . Total Part Build Rating . | . . . Parts Repaired . | . . . Time . | . . . Parts Recycled . | . . . Recycled Matter . | . . . Retrieved Matter . | . . . Retrieved Components . | . . . Parts Scanalyzed . | . . . Part Schematics Acquired . | . . . Parts Damaged . | . . . Bothacking | -11 -10 -9 ------------ Run | Yrd Mat Mat Used RIF Installer . | . . . Robots Hacked 1 | . 1 . Non-combat 1 | . 1 . Combat . | . . . Robot Hacks Applied 1 | . 1 . parse_system 1 | . 1 . Relay Couplers Released . | . . . Fabnet Peak Effective % . | . . . Robots Rewired . | . . . Allies Hacked . | . . . Hacks Repelled . | . . . Allies | -11 -10 -9 -------- Run | Yrd Mat Mat Total Allies . | . . . Largest Group . | . . . Highest-Rated Group . | . . . Highest-Rated Ally . | . . . Total Orders . | . . . Ally Attacks . | . . . Total Damage . | . . . Kills . | . . . Allies Corrupted . | . . . Allies Melted . | . . . Intel | -11 -10 -9 ------- Run | Yrd Mat Mat Robot Analysis Total . | . . . Derelict Logs Recovered . | . . . Drone Launches . | . . . Drone Recoveries . | . . . Exploration | -11 -10 -9 ------------- Run | Yrd Mat Mat Turns Passed 913 | 86 593 234 Spaces Moved 758 | 52 317 389 Core 8 | 8 . . Treads 279 | 44 235 . Legs . | . . . Wheels . | . . . Hover . | . . . Flight 471 | . 82 389 Fastest Speed 34 | 50 117 34 Average Speed 90 | 146 149 36 Slowest Speed 200 | 160 200 120 Overloaded Moves . | . . . Propulsion Burnouts . | . . . Robots Hopped 7 | . . 7 Cave-ins Triggered . | . . . Exploration Rate (%) 33 | 5 52 43 Regions Visited 2 Branch Regions . Pre-discovered Areas . | . . . Known Exits Taken 1 | . 1 . Unknown Exits Taken 1 | 1 . . Scrap Searched . | . . . Spaces Dug . | . . . Terrain Destroyed 51 | . 51 . Melee . | . . . Projectile . | . . . AOE 51 | . 51 . Terrain Rammed . | . . . Walls Destroyed . | . . . Machines Disabled . | . . . Actions | -11 -10 -9 --------- Run | Yrd Mat Mat Total 930 | 59 403 468 Wait 89 | . 30 59 Move 743 | 51 316 376 Hop 6 | . . 6 Pick Up 15 | 3 6 6 Fast Attach 12 | 5 4 3 Attach 4 | . 2 2 Detach . | . . . Swap 8 | . 6 2 Drop 11 | . 6 5 Fire 39 | . 31 8 Melee 2 | . 2 . Ram 1 | . . 1 Kick . | . . . Crush . | . . . Escape Stasis . | . . . Rewire . | . . . Trap . | . . . Miscellaneous . | . . . Route ------- -11/Scrapyard -10/Materials (discovered 3 exits: *Mat x2 / [*Min]) -9/Materials History --------- Turn | Location | Event 3 | -11/Scrapyard | Discovered new exit (range 16) 87 | -11/Scrapyard | Entered Materials 134 | -10/Materials | Discovered new exit (range 16) 308 | -10/Materials | Build established: Mutant 462 | -10/Materials | Discovered new exit (range 16) 677 | -10/Materials | Discovered new exit (range 4) 679 | -10/Materials | Identified exit to Materials 680 | -10/Materials | Entered another Materials area 680 | -9/Materials | Evolved 2 slots: Propulsion x1, Utility x1 905 | -9/Materials | Core integrity fell below 50% 911 | -9/Materials | Core integrity fell below 20% 914 | -9/Materials | Destroyed by G-47 Trooper with Particle Gun Last Messages --------------- Dropped Structural Scanner. Acquired Prototype Engine. Identified Hvy. Ion Engine. Dropped Sml. Storage Unit. Acquired Structural Scanner. Flight Unit destroyed. K-01 Serf collects debris. Slammed into G-47 Trooper. K-01 Serf collects debris. Flight Unit destroyed. K-01 Serf collects debris. Flight Unit destroyed. C-30 ARC bursts open, deploying its payload. G-47 Trooper unfolds itself. G-34 Mercenary unfolds itself. S-10 Pest destroyed. Critical hit (Burn: +37). Structural Scanner destroyed. Hvy. Ion Engine destroyed. G-34 Mercenary destroyed. Map ----- +----------------------------------------------------+ | | | | | | | | | | | | | | | | | | | | | | | ??????#######????????????????????????????????? | | ??????# #???????????????????????????????? | | ??????# """ ############????????????????????? | | ??????# """ ############????????????????????? | | ??????# """ # ##????????????????????? | | ??????# # ##????????????????????? | | ??????# # ##????????????????????? | | ??????####+### ##????????????????????? | | ??????## # ##????????????????????? | | ######## + ##????????????????????? | | ########### # ##????????????????????? | | ## # # # ????????????????????? | | ## + ##+######## ????????????????????? | | ##! """ # g%* # ????????????????????? | | ## """"" # wY @!# ????????????????????? | | ## """"" ######/####gg# ????????????????????? | | ## """"" ## #lg# ????????????????????? | | ## """ ## # + ????????????????????? | | ## ! ## #gg# ???????????????????? | | ## ## # g ????????????????? | | #####################+#######????????????????? | | ################# """ """ ###????????????????? | | ???????????????# """"""" #??????????????????? | | ???????????????## """%""" #??????????????????? | | ????????????????# " #??????????????????? | | ????????????????# #??????????????????? | | ????????????????# #??????????????????? | | ????????????????# #??????????????????? | | ????????????????# ] #??????????????????? | | ????????????????########/##########??????????? | | ????????????????????### +??????????? | | ??????????????????????# #??????????? | | ??????????????????????#!* #+##???????? | | ??????????????????????# == ??????? | | ??????????????????????# *[! ??????? | | ??????????????????????# %=|= ??????? | | ??????????????????????#!*%###########+???????? | | ??????????????????????# #??????????????????? | | ??????????????????????# |#??????????????????? | +----------------------------------------------------+ Best States ------------- Heat Dissipation 28 Energy Generation 14 Energy Capacity 280 Matter Stores 299 Matter Capacity 300 Sight Range 16 Robot Scan Range 14 Terrain Scan Density 10 Evasion (%) 63 Recoil Reduction 2 Offensive Hacking 10 Item Schematics ----------------- None Robot Schematics ------------------ None Fabricated ------------ Nothing Alien Tech Used ----------------- None Achievements -------------- None Challenges ------------ None Game ------ Seed DataAdvancedConstruct Manual? 0 Play Time 00:14:01 Cumulative 18.6 hours Start 2024.04.10 @ 20:18:45 End 2024.04.10 @ 20:31:43 Sessions 1 Manual Loads 0 Difficulty Rogue Special Mode None Game No. 38 Rogue 38 Adventurer 0 Explorer 0 Win Type - Total 0 Types 0/0/0/0/0/0/0/0/0 Lore% 15 Gallery% 22 Achievement% 23 Wizard Run 0 Options --------- Layout 1 ASCII 0 Keyboard 0 Movement Numpad Keybinds 0 Fullscreen 1 Font 32/SmallcapsGlow Map View 50x35 Zoom Use 0% Tactical HUD 0 Map Filters NONE Filters NONE Steam 1 RUN: 33ce2a69-946e-47f6-af14-82969c7e5031